bitfinex/quotes_SOLUSD_20250929
["timestamp","ask_amount","ask_price","bid_price","bid_amount"]
[1759148725500,0.09361737,207.93,207.92,50.57559401]
[1759148731525,0.09361737,207.93,207.84,12.02798543]
[1759148731706,2.22442753,207.92,207.88,13.59559401]
[1759148731905,2.22442753,207.92,207.9,13.59559401]
[1759148732209,2.22442753,207.92,207.91,36.98]
[1759148732406,2.22442753,207.92,207.91,37.66]
[1759148732828,2.22442753,207.92,207.91,36.98]
[1759148734205,1.42433223,207.92,207.91,36.98]
[1759148734840,1.42433223,207.92,207.91,37.66]
[1759148735332,1.42433223,207.92,207.91,36.98]
[1759148739037,0.09361737,207.93,207.92,13.59559401]
[1759148741933,0.09361737,207.93,207.92,14.27559401]
[1759148743526,0.09361737,207.93,207.92,19.08513614]
[1759148749263,0.09361737,207.93,207.92,56.06513614]
[1759148750348,1e-08,207.93,207.92,56.06513614]
[1759148750540,1e-08,207.93,207.92,135.36513614]
[1759148752757,1e-08,207.93,207.92,137.29335808]
[1759148753044,1e-08,207.93,207.92,100.31335808]
[1759148753234,1e-08,207.93,207.92,137.29335808]
[1759148754042,1e-08,207.93,207.92,100.31335808]
[1759148754251,1e-08,207.93,207.92,97.70513614]
[1759148754933,1e-08,207.93,207.92,134.66513614]
[1759148755130,1e-08,207.93,207.92,97.70513614]
[1759148755331,1e-08,207.93,207.92,134.66513614]
[1759148755931,1e-08,207.93,207.92,97.70513614]
[1759148756253,1e-08,207.93,207.92,55.36513614]
[1759148757355,1e-08,207.93,207.92,18.40513614]
[1759148757559,1e-08,207.93,207.92,36.96]
[1759148757852,1e-08,207.93,207.91,13.59559401]
[1759148758058,1e-08,207.93,207.92,36.96]
[1759148758552,1e-08,207.93,207.91,13.59559401]
[1759148758730,1e-08,207.93,207.92,36.96]
[1759148759254,1e-08,207.93,207.92,41.76954213]
[1759148759843,1e-08,207.93,207.92,36.96]
[1759148760764,1e-08,207.93,207.92,41.76954213]
[1759148761131,1e-08,207.93,207.92,4.80954213]
[1759148761329,1e-08,207.93,207.92,41.76954213]
[1759148762958,1e-08,207.93,207.92,42.46954213]
[1759148764752,1e-08,207.93,207.92,41.76954213]
[1759148764951,1e-08,207.93,207.92,42.46954213]
[1759148765753,1e-08,207.93,207.92,41.76954213]
[1759148766940,1e-08,207.93,207.92,36.96]
[1759148770054,1e-08,207.93,207.92,42.46954213]
[1759148771334,1e-08,207.93,207.92,41.76954213]
[1759148772142,1e-08,207.93,207.92,42.46954213]
[1759148772839,1e-08,207.93,207.92,41.76954213]
[1759148773040,1e-08,207.93,207.92,42.46954213]
[1759148774566,1e-08,207.93,207.92,56.06513614]
[1759148774981,1e-08,207.93,207.92,50.55559401]
[1759148776061,1e-08,207.93,207.92,13.59559401]
[1759148776268,1e-08,207.93,207.92,50.55559401]
[1759148777876,1e-08,207.93,207.92,51.26559401]
[1759148778065,1e-08,207.93,207.92,14.30559401]
[1759148778274,1e-08,207.93,207.92,51.26559401]
[1759148779154,1e-08,207.93,207.92,50.55559401]
[1759148781191,1e-08,207.93,207.92,13.59559401]
[1759148781482,1e-08,207.93,207.92,50.55559401]
[1759148782391,1e-08,207.93,207.92,51.26559401]
[1759148783490,1e-08,207.93,207.92,50.55559401]
[1759148791507,0.61000001,207.93,207.92,36.96]
[1759148791716,29.84951236,207.93,207.92,36.96]
[1759148791918,26.61000001,207.93,207.92,36.96]
[1759148792103,29.84951236,207.93,207.92,36.96]
[1759148792300,26.61000001,207.93,207.92,36.96]
[1759148792704,31.41931083,207.93,207.92,36.96]
[1759148794518,32.23364306,207.93,207.92,36.96]
[1759148794710,32.84364306,207.93,207.92,36.96]
[1759148795414,32.84364306,207.93,207.89,0.71]
[1759148795616,1.42433223,207.9,207.88,13.59559401]
[1759148795810,1.42433223,207.9,207.89,36.96]
[1759148796191,3.85248433,207.92,207.88,13.59559401]
[1759148796429,2.22603553,207.9,207.89,36.96]
[1759148796797,7.03604034,207.9,207.89,36.96]
[1759148797727,7.03604034,207.9,207.86,13.59559401]
[1759148797910,7.03604034,207.9,207.88,13.59559401]
[1759148798226,2.22603553,207.9,207.89,36.96]
[1759148798925,7.03604034,207.9,207.89,36.96]
[1759148799328,2.22603553,207.9,207.89,36.96]
[1759148801023,7.03604034,207.9,207.89,36.96]
[1759148801698,2.22603553,207.9,207.89,36.96]
[1759148802114,2.22603553,207.9,207.89,37.67]
[1759148803025,2.22603553,207.9,207.89,36.96]
[1759148803324,2.22603553,207.92,207.9,13.59559401]
[1759148803514,2.22603553,207.92,207.91,50.55559401]
[1759148803714,2.22603553,207.92,207.91,51.26559401]
[1759148804515,9.87161319,207.92,207.79,37.58]
[1759148804711,26.0,207.89,207.8,37.79]
[1759148804903,26.0,207.89,207.8,37.08]
[1759148804904,2.22603553,207.81,207.8,37.08]
[1759148805217,2.22603553,207.81,207.8,51.38559401]
[1759148805418,2.22603553,207.81,207.8,37.79]
[1759148805716,2.22603553,207.83,207.81,13.59559401]
[1759148805916,2.22603553,207.83,207.82,51.38559401]
[1759148815729,4.81069899,207.87,207.83,13.59559401]
[1759148815931,2.22603553,207.85,207.84,37.06]
[1759148817534,7.03719742,207.85,207.84,37.06]
[1759148819136,2.22603553,207.85,207.84,37.06]
[1759148820140,7.03719742,207.85,207.84,37.72]
[1759148820436,2.22603553,207.85,207.84,37.72]
[1759148820931,4.81097371,207.86,207.84,37.72]
[1759148821111,2.22603553,207.89,207.85,14.25559401]
[1759148821312,7.03580898,207.91,207.87,13.59559401]
[1759148821514,7.03580898,207.91,207.88,37.7]
[1759148822035,22.51857992,207.93,207.89,0.66]
[1759148822231,14.47143099,207.93,207.9,37.7]
[1759148822436,0.1,207.95,207.91,40.25559401]
[1759148822732,0.1,207.95,207.92,50.81559401]
[1759148822933,0.1,207.95,207.92,14.25559401]
[1759148823119,0.1,207.95,207.94,13.59559401]
[1759148823326,0.1,207.95,207.94,37.24]
[1759148823524,4.90884828,207.95,207.91,0.66]
[1759148823840,4.90884828,207.95,207.92,37.24]
[1759148824333,4.90884828,207.95,207.92,37.9]
[1759148824639,4.90884828,207.95,207.92,37.24]
[1759148824825,0.61,207.94,207.88,0.66]
[1759148825013,0.61,207.94,207.89,50.81559401]
[1759148825218,2.83603553,207.93,207.89,50.81559401]
[1759148826032,0.1,207.95,207.91,13.59559401]
[1759148826338,4.90886195,207.95,207.92,37.9]
[1759148828829,0.1,207.95,207.93,0.66]
[1759148829142,0.1,207.95,207.94,50.83559401]
[1759148829435,0.1,207.95,207.94,51.49559401]
[1759148835535,0.1,207.95,207.94,56.30467355]
[1759148837233,0.1,207.95,207.94,70.64081021]
[1759148841628,0.1,207.95,207.94,33.40081021]
[1759148841952,0.1,207.95,207.94,70.58081021]
[1759148842145,0.1,207.95,207.94,75.99778131]
[1759148843348,0.1,207.95,207.94,70.58081021]
[1759148846276,0.1,207.95,207.94,149.88081021]
[1759148847948,0.1,207.95,207.94,149.84081021]
[1759148850555,0.1,207.95,207.94,112.70081021]
[1759148850854,0.1,207.95,207.94,149.82081021]
[1759148852158,0.1,207.95,207.94,70.52081021]
[1759148852752,0.1,207.95,207.94,33.40081021]
[1759148852960,0.1,207.95,207.94,70.50081021]
[1759148854836,0.71,207.95,207.94,27.93173067]
[1759148855037,0.71,207.95,207.94,65.03173067]
[1759148855237,0.1,207.95,207.94,65.03173067]
[1759148855436,0.1,207.95,207.94,27.93173067]
[1759148855733,0.71,207.95,207.94,27.93173067]
[1759148855944,0.71,207.95,207.9,13.59559401]
[1759148856131,0.1,207.95,207.92,13.59559401]
[1759148856334,0.1,207.95,207.94,13.59559401]
[1759148857137,0.1,207.95,207.94,50.69559401]
[1759148859959,0.71,207.95,207.94,50.69559401]
[1759148860265,0.1,207.95,207.94,50.69559401]
[1759148861563,0.1,207.95,207.94,50.67559401]
[1759148862161,0.1,207.95,207.94,51.32559401]
[1759148862761,0.1,207.95,207.94,50.67559401]
[1759148867079,0.1,207.95,207.94,51.30559401]
[1759148867450,0.1,207.95,207.94,50.65559401]
[1759148867652,0.1,207.95,207.94,51.30559401]
[1759148868658,0.1,207.95,207.94,56.11467355]
[1759148873057,0.1,207.95,207.94,56.09467355]
[1759148874762,0.1,207.95,207.94,19.05467355]
[1759148874957,0.1,207.95,207.94,56.09467355]
[1759148876070,0.1,207.95,207.94,18.40467355]
[1759148876308,0.1,207.95,207.94,13.59559401]
[1759148876467,0.71,207.95,207.94,13.59559401]
[1759148876659,0.71,207.95,207.94,50.61559401]
[1759148877177,0.1,207.95,207.94,50.61559401]
[1759148877856,0.1,207.95,207.94,50.63559401]
[1759148880652,0.1,207.95,207.94,13.59559401]
[1759148880850,0.1,207.95,207.94,50.61559401]
[1759148881272,0.71,207.95,207.94,50.61559401]
[1759148881586,0.71,207.95,207.94,13.59559401]
[1759148882281,0.71,207.95,207.94,50.61559401]
[1759148882470,0.1,207.95,207.94,50.61559401]
[1759148882667,5.51884828,207.95,207.9,13.59559401]
[1759148882984,5.51884828,207.95,207.91,50.61559401]
[1759148882985,1.42342589,207.93,207.91,50.61559401]
[1759148883182,2.03342589,207.93,207.91,50.61559401]
[1759148883373,1.42342589,207.93,207.91,50.61559401]
[1759148883772,6.23285976,207.93,207.91,50.61559401]
[1759148883980,6.84285976,207.93,207.91,50.61559401]
[1759148884183,6.23285976,207.93,207.91,50.61559401]
[1759148885758,0.61,207.92,207.88,79.3]
[1759148885966,4.80977345,207.91,207.9,13.59559401]
[1759148886271,4.80977345,207.91,207.9,50.61559401]
[1759148887184,4.80954213,207.92,207.9,50.61559401]
[1759148887489,0.1,207.95,207.9,50.61559401]
[1759148887782,0.71,207.95,207.92,13.59559401]
[1759148888097,0.1,207.95,207.94,13.59559401]
[1759148888470,0.1,207.95,207.94,14.27559401]
[1759148889371,0.1,207.95,207.94,19.08467355]
[1759148894890,0.1,207.95,207.94,98.38467355]
[1759148896872,0.1,207.95,207.94,135.42467355]
[1759148898089,0.1,207.95,207.94,129.93559401]
[1759148898593,0.1,207.95,207.94,135.42467355]
[1759148898882,0.1,207.95,207.94,98.38467355]
[1759148899081,0.1,207.95,207.94,130.61559401]
[1759148899288,0.1,207.95,207.94,56.12467355]
[1759148900270,0.1,207.95,207.94,19.08467355]
[1759148900476,0.1,207.95,207.94,56.22467355]
[1759148901474,0.1,207.95,207.94,19.08467355]
[1759148901672,0.1,207.95,207.94,56.26467355]
[1759148904999,0.1,207.95,207.94,55.58467355]
[1759148905377,0.1,207.95,207.94,56.26467355]
[1759148906709,0.1,207.95,207.94,55.58467355]
[1759148908513,0.1,207.95,207.94,50.77559401]
[1759148909002,0.1,207.95,207.94,13.59559401]
[1759148909189,0.1,207.95,207.94,50.77559401]
[1759148910206,0.71,207.95,207.92,4.80953562]
[1759148910378,0.61,207.94,207.93,50.75559401]
[1759148910998,0.1,207.95,207.93,50.75559401]
[1759148911196,4.90888036,207.95,207.93,50.75559401]
[1759148911705,5.51888036,207.95,207.93,50.75559401]
[1759148911887,0.1,207.95,207.93,50.75559401]
[1759148912092,0.71,207.95,207.93,50.75559401]
[1759148912784,0.1,207.95,207.93,50.75559401]
[1759148913302,0.61,207.94,207.9,13.59559401]
[1759148913487,0.61,207.94,207.92,13.59559401]
[1759148913692,4.9089049,207.95,207.93,37.16]
[1759148914205,0.61,207.94,207.93,50.75559401]
[1759148914591,4.9089049,207.95,207.93,50.75559401]
[1759148914791,4.9089049,207.95,207.88,14.6352427]
[1759148914989,0.61,207.94,207.89,50.75559401]
[1759148915181,0.61,207.94,207.89,51.43559401]
[1759148915381,0.61,207.94,207.89,50.75559401]
[1759148915603,4.9089049,207.95,207.9,0.68]
[1759148915810,5.5189049,207.95,207.92,13.59559401]
[1759148916011,0.1,207.95,207.93,37.16]
[1759148916311,0.71,207.95,207.93,37.16]
[1759148916484,5.51891055,207.95,207.93,37.16]
[1759148919307,3.32859323,208.0,207.94,14.27559401]
[1759148919505,3.32859323,208.0,207.96,13.59559401]
[1759148919506,0.1,208.0,207.96,13.59559401]
[1759148919707,0.1,208.0,207.98,13.59559401]
[1759148919895,0.1,208.0,207.99,42.06792345]
[1759148920092,0.1,208.0,207.99,37.26]
[1759148921334,0.1,208.0,207.99,50.85559401]
[1759148922708,0.1,208.0,207.99,51.53559401]
[1759148927010,0.1,208.0,207.99,50.85559401]
[1759148928589,0.1,208.0,207.99,50.81559401]
[1759148928996,0.1,208.0,207.99,13.59559401]
[1759148929198,0.1,208.0,207.99,50.81559401]
[1759148929791,0.1,208.0,207.99,51.49559401]
[1759148930109,0.1,208.0,207.99,14.27559401]
[1759148930315,0.1,208.0,207.99,51.49559401]
[1759148931609,0.1,208.0,207.99,14.27559401]
[1759148931812,0.1,208.0,207.99,51.47559401]
[1759148934814,0.1,208.0,207.99,51.51559401]
[1759148935305,0.1,208.0,207.99,50.77559401]
[1759148936404,0.1,208.0,207.99,51.49559401]
[1759148937214,0.1,208.0,207.99,13.59559401]
[1759148937422,0.1,208.0,207.99,50.77559401]
[1759148938511,0.1,208.0,207.99,13.59559401]
[1759148938705,0.1,208.0,207.99,50.77559401]
[1759148938911,0.1,208.0,207.99,13.59559401]
[1759148939099,0.71,208.0,207.99,50.75559401]
[1759148939423,0.1,208.0,207.99,50.75559401]
[1759148941919,0.1,208.0,207.99,51.47559401]
[1759148942125,0.1,208.0,207.99,50.75559401]
[1759148943124,0.1,208.0,207.99,51.47559401]
[1759148943625,0.1,208.0,207.99,50.75559401]
[1759148944028,0.1,208.0,207.99,51.47559401]
[1759148945027,4.9076923,208.0,207.99,37.16]
[1759148946431,7.13240775,208.0,207.97,13.59559401]
[1759148946723,7.13240775,208.0,207.98,37.16]
[1759148947228,7.13240775,208.0,207.97,14.31559401]
[1759148947430,7.13240775,208.0,207.98,37.14]
[1759148947730,7.13240775,208.0,207.97,14.31559401]
[1759148947731,7.13240775,208.0,207.99,37.14]
[1759148948507,7.13240775,208.0,207.97,14.31559401]
[1759148948827,7.13240775,208.0,207.98,37.14]
[1759148950024,7.13240775,208.0,207.97,0.72]
[1759148950414,7.13240775,208.0,207.98,37.12]
[1759148952126,0.1,208.0,207.99,0.72]
[1759148953624,0.1,208.0,207.99,14.31559401]
[1759148953809,0.1,208.0,207.99,19.12351746]
[1759148954016,0.1,208.0,207.99,19.10351746]
[1759148964448,0.1,208.0,207.99,56.18351746]
[1759148965020,0.1,208.0,207.99,135.48351746]
[1759148966041,0.1,208.05,208.0,13.59559401]
[1759148966224,0.1,208.05,208.04,13.59559401]
[1759148966430,0.1,208.05,208.04,50.73559401]
[1759148966630,0.1,208.05,208.04,51.39559401]
[1759148967159,0.1,208.05,208.04,58.12965481]
[1759148968345,0.1,208.1,208.08,13.59559401]
[1759148968528,0.1,208.1,208.09,50.81559401]
[1759148968728,0.1,208.1,208.09,51.47559401]
[1759148969339,0.1,208.1,208.09,56.28120696]
[1759148970750,0.1,208.1,208.09,71.06484595]
[1759148971353,0.1,208.1,208.09,70.40484595]
[1759148971556,0.1,208.1,208.09,71.06484595]
[1759148972248,0.1,208.1,208.09,65.579233]
[1759148972844,2.93471545,208.1,208.09,50.79559401]
[1759148973537,0.1,208.1,208.09,50.79559401]
[1759148974751,0.1,208.1,208.09,64.90331047]
[1759148974957,0.1,208.1,208.09,50.79559401]
[1759148976047,0.71,208.1,208.09,50.79559401]
[1759148976365,0.1,208.1,208.09,37.2]
[1759148976550,5.51538202,208.1,208.09,37.2]
[1759148978837,0.71,208.1,208.09,37.2]
[1759148979045,0.1,208.1,208.09,37.2]
[1759148979446,0.71,208.1,208.09,37.2]
[1759148979859,0.1,208.1,208.09,37.2]
[1759148980963,0.1,208.1,208.09,51.45559401]
[1759148985065,0.1,208.1,208.09,56.26120696]
[1759148987144,0.1,208.1,208.09,51.45559401]
[1759148987671,0.1,208.1,208.09,56.26120696]
[1759148987879,0.1,208.1,208.09,55.60120696]
[1759148988182,0.1,208.1,208.09,56.26120696]
[1759148992455,0.1,208.12,208.1,13.59559401]
[1759148992672,0.1,208.12,208.11,50.71559401]
[1759148992875,0.1,208.12,208.11,51.37559401]
[1759148993979,0.1,208.12,208.11,56.18074513]
[1759148996260,0.1,208.12,208.11,51.35559401]
[1759148997167,0.1,208.12,208.11,56.16074513]
[1759148997779,0.1,208.12,208.11,135.46074513]
[1759149001288,0.1,208.12,208.11,56.16074513]
[1759149002578,0.1,208.12,208.11,82.16074513]
[1759149009291,0.1,208.14,208.13,39.59559401]
[1759149009480,0.1,208.14,208.13,76.67559401]
[1759149009680,0.1,208.14,208.13,77.33559401]
[1759149011176,0.1,208.14,208.13,82.14028338]
[1759149011364,0.1,208.14,208.13,44.40028338]
[1759149011560,0.1,208.14,208.13,82.16028338]
[1759149011788,0.1,208.14,208.13,81.50028338]
[1759149012793,0.1,208.14,208.13,55.50028338]
[1759149013090,0.1,208.14,208.13,56.16028338]
[1759149013568,0.1,208.14,208.13,56.17028338]
[1759149015995,0.1,208.14,208.13,55.50028338]
[1759149016691,0.1,208.14,208.13,13.59559401]
[1759149016692,0.8,208.14,208.13,13.59559401]
[1759149016900,0.8,208.14,208.13,50.67559401]
[1759149020094,5.60445853,208.14,208.13,37.08]
[1759149022074,7.02619694,208.14,208.13,37.08]
[1759149023175,19.03734328,208.14,208.1,13.59559401]
[1759149023377,0.7,208.13,208.11,37.06]
[1759149023891,0.7,208.12,208.11,37.06]
[1759149024489,5.50492023,208.12,208.11,37.06]
[1759149024886,6.92665864,208.12,208.11,37.06]
[1759149027286,6.92665864,208.12,208.06,0.68]
[1759149027489,18.93895923,208.12,208.07,50.63559401]
[1759149027690,1.42173841,208.09,208.08,37.06]
[1759149027887,2.12173841,208.09,208.05,13.59559401]
[1759149028101,0.7,208.08,208.06,37.06]
[1759149028591,5.50602049,208.08,208.06,37.06]
[1759149028792,4.80602049,208.08,208.06,37.06]
[1759149029500,0.7,208.07,208.06,37.06]
[1759149029714,1.42173841,208.1,208.06,37.06]
[1759149030195,0.7,208.09,208.06,37.06]
[1759149030511,4.8058439,208.08,208.06,37.06]
[1759149032509,0.7,208.08,208.06,37.06]
[1759149032980,4.80561295,208.09,208.06,37.06]
[1759149033383,5.50561295,208.09,208.06,37.06]
[1759149033611,6.92735136,208.09,208.06,37.06]
[1759149036401,6.22735136,208.09,208.06,37.06]
[1759149036790,6.22735136,208.09,208.06,37.74]
[1759149036990,6.22735136,208.09,208.06,37.06]
[1759149037289,18.24138374,208.09,208.06,37.06]
[1759149037794,18.94138374,208.09,208.06,37.06]
[1759149038324,18.24138374,208.09,208.06,37.06]
[1759149039489,18.24138374,208.09,208.06,37.74]
[1759149039812,18.24138374,208.09,208.06,37.06]
[1759149040001,18.94138374,208.09,208.06,37.06]
[1759149040609,18.24138374,208.09,208.06,37.06]
[1759149041596,18.24138374,208.09,208.06,37.74]
[1759149041800,6.22735136,208.09,208.06,37.74]
[1759149042513,2.22210183,208.08,208.06,37.74]
[1759149044908,2.22210183,208.08,208.06,37.06]
[1759149045108,2.22210183,208.08,208.07,0.68]
[1759149045819,7.02794573,208.08,208.07,0.68]
[1759149047906,2.22210183,208.08,208.07,0.68]
[1759149049920,7.02794573,208.08,208.07,0.68]
[1759149051434,0.1,208.14,208.08,13.59559401]
[1759149051605,0.1,208.14,208.09,37.74]
[1759149051805,0.1,208.14,208.1,13.59559401]
[1759149052001,0.1,208.14,208.12,13.59559401]
[1759149052202,0.1,208.14,208.13,50.61559401]
[1759149052618,0.1,208.14,208.13,51.33559401]
[1759149052805,4.90445853,208.14,208.13,37.02]
[1759149055423,4.90445853,208.14,208.13,37.74]
[1759149056829,4.90445853,208.14,208.13,37.02]
[1759149060011,16.91560487,208.14,208.13,37.02]
[1759149060327,4.90445853,208.14,208.13,37.02]
[1759149060533,4.90445853,208.14,208.13,37.74]
[1759149060922,0.1,208.14,208.13,37.74]
[1759149061513,0.1,208.14,208.13,51.33559401]
[1759149063321,0.1,208.14,208.13,14.31559401]
[1759149063534,7.12656036,208.14,208.11,0.72]
[1759149063740,7.12656036,208.14,208.09,79.3]
[1759149063741,0.7,208.13,208.09,79.3]
[1759149063917,2.22210183,208.11,208.1,37.06]
[1759149064815,2.22210183,208.11,208.09,79.3]
[1759149065024,7.02725295,208.11,208.1,37.08]
[1759149065227,7.02725295,208.11,208.1,37.8]
[1759149066150,7.02725295,208.11,208.1,37.08]
[1759149067622,7.72725295,208.11,208.1,37.06]
[1759149067836,7.02725295,208.11,208.1,37.06]
[1759149069932,7.72725295,208.11,208.1,37.06]
[1759149070136,10.95487578,208.11,208.1,37.06]
[1759149071844,10.25487578,208.11,208.1,37.06]
[1759149072650,22.96775358,208.11,208.1,37.06]
[1759149072942,26.0,208.08,208.03,0.72]
[1759149073259,3.22762283,208.1,208.05,13.59559401]
[1759149073546,12.81169619,208.14,208.07,13.59559401]
[1759149073547,3.32762283,208.14,208.07,13.59559401]
[1759149073731,10.35419216,208.14,208.09,13.59559401]
[1759149074043,7.12656933,208.14,208.1,37.77]
[1759149074247,7.12656933,208.14,208.11,0.69]
[1759149074421,7.12656933,208.14,208.12,37.77]
[1759149075950,0.1,208.14,208.12,37.08]
[1759149076129,2.32210183,208.14,208.13,0.69]
[1759149077241,0.1,208.14,208.13,0.69]
[1759149078348,4.90445853,208.14,208.13,0.69]
[1759149080544,0.1,208.14,208.13,0.69]
[1759149080746,0.1,208.14,208.13,14.28559401]
[1759149080941,0.1,208.14,208.13,19.09028338]
[1759149089843,0.1,208.14,208.13,98.39028338]
[1759149094362,0.1,208.16,208.15,26.0]
[1759149094563,0.1,208.16,208.15,76.69559401]
[1759149094856,0.1,208.16,208.15,77.41559401]
[1759149095247,0.1,208.16,208.15,56.21982173]
[1759149095451,0.1,208.16,208.15,270.21982173]
[1759149097745,0.1,208.21,208.19,39.59559401]
[1759149098064,0.1,208.21,208.2,50.67559401]
[1759149098255,0.1,208.21,208.2,51.39559401]
[1759149098766,0.1,208.21,208.2,50.67559401]
[1759149099058,0.1,208.21,208.2,51.39559401]
[1759149099861,0.1,208.21,208.2,56.19866797]
[1759149101543,0.1,208.21,208.2,55.47866797]
[1759149101747,0.1,208.21,208.2,135.49866797]
[1759149106237,0.77,208.31,208.2,135.49866797]
[1759149106441,0.1,208.31,208.24,13.59559401]
[1759149106663,0.1,208.31,208.26,13.59559401]
[1759149106861,0.1,208.31,208.28,13.59559401]
[1759149107048,0.1,208.31,208.3,13.59559401]
[1759149107442,0.1,208.31,208.3,14.31559401]
[1759149107642,0.1,208.31,208.3,13.59559401]
[1759149108139,0.1,208.31,208.28,4.80122001]
[1759149108339,0.1,208.31,208.3,13.59559401]
[1759149108545,0.1,208.31,208.3,50.85559401]
[1759149108764,0.1,208.31,208.3,51.57559401]
[1759149108987,0.1,208.31,208.3,77.57559401]
[1759149109269,0.1,208.31,208.3,66.34432871]
[1759149109943,0.1,208.35,208.34,39.59559401]
[1759149110183,0.67,208.47,208.34,76.91559401]
[1759149110384,0.67,208.48,208.4,13.59559401]
[1759149110550,1.41912232,208.51,208.41,37.6]
[1759149110752,0.67,208.45,208.41,51.19559401]
[1759149111257,0.79,208.42,208.41,13.59559401]
[1759149111662,0.79,208.42,208.34,13.59559401]
[1759149111862,0.79,208.42,208.36,13.59559401]
[1759149111863,0.69,208.41,208.36,13.59559401]
[1759149112171,0.69,208.4,208.37,37.62]
[1759149112353,0.69,208.39,208.36,13.59559401]
[1759149112670,0.69,208.38,208.37,51.21559401]
[1759149112879,0.69,208.38,208.37,13.59559401]
[1759149113045,0.69,208.38,208.3,14.7687347]
[1759149113249,1.41912232,208.36,208.31,48.85559401]
[1759149113456,1.41912232,208.36,208.33,13.59559401]
[1759149113457,0.69,208.35,208.33,13.59559401]
[1759149113748,1.41912232,208.36,208.3,14.24719168]
[1759149113957,1.41912232,208.33,208.25,13.59559401]
[1759149114264,0.69,208.32,208.27,13.59559401]
[1759149114564,0.69,208.31,208.29,13.59559401]
[1759149114764,16.7986561,208.35,208.28,37.62]
[1759149114765,4.79961603,208.35,208.3,37.62]
[1759149115144,5.48937433,208.37,208.31,13.59559401]
[1759149115364,0.69,208.37,208.33,13.59559401]
[1759149115570,1.41912232,208.4,208.33,13.59559401]
[1759149115571,0.69,208.36,208.34,37.62]
[1759149115771,0.69,208.35,208.34,37.62]
[1759149116763,5.48961603,208.35,208.34,37.62]
[1759149117157,5.48961603,208.35,208.3,13.59559401]
[1759149117354,0.69,208.34,208.31,37.6]
[1759149117550,0.69,208.33,208.31,37.6]
[1759149117755,0.69,208.32,208.31,37.6]
[1759149117984,4.80053766,208.31,208.23,5.50237332]
[1759149118158,0.69,208.3,208.25,14.40571562]
[1759149118473,0.69,208.29,208.26,37.6]
[1759149118662,0.69,208.28,208.26,37.6]
[1759149118850,0.69,208.27,208.22,13.59559401]
[1759149119052,0.69,208.27,208.24,13.59559401]
[1759149119274,0.69,208.26,208.22,13.59559401]
[1759149119581,0.69,208.26,208.23,37.6]
[1759149119782,1.41912232,208.29,208.23,37.6]
[1759149119783,0.69,208.25,208.23,37.6]
[1759149119973,5.49197478,208.25,208.19,14.29559401]
[1759149120161,0.69,208.25,208.21,13.59559401]
[1759149120688,0.69,208.25,208.22,37.6]
[1759149120876,0.69,208.31,208.24,13.59559401]
[1759149121078,5.49060191,208.31,208.25,37.6]
[1759149121263,0.69,208.31,208.26,13.59559401]
[1759149121467,0.69,208.31,208.26,14.29559401]
[1759149121668,0.69,208.35,208.28,13.59559401]
[1759149121995,0.69,208.34,208.29,37.62]
[1759149122193,5.48934786,208.37,208.3,14.29559401]
[1759149122987,0.69,208.36,208.26,2.11912232]
[1759149123301,0.69,208.35,208.25,13.59559401]
[1759149123468,26.0,208.33,208.26,37.64]
[1759149123667,2.10912232,208.32,208.27,37.66]
[1759149123883,1.41912232,208.3,208.27,37.66]
[1759149124174,4.80122911,208.28,208.27,37.66]
[1759149124374,5.49122911,208.28,208.27,37.66]
[1759149124691,18.91342421,208.28,208.26,37.68]
[1759149124891,0.69,208.27,208.26,37.68]
[1759149125075,0.69,208.27,208.25,37.68]